[Event "XTX Markets London Masters 2024"]
[Site "London"]
[Date "2024.11.30"]
[Round "2.8"]
[White "Harvey, Marcus R"]
[Black "Thorfinnsson, Bjorn"]
[Result "1-0"]
[ECO "A29"]
[WhiteElo "2491"]
[BlackElo "2370"]
[Annotator "TA"]
[PlyCount "131"]
[EventDate "2024.11.28"]
[EventType "swiss"]
[EventCountry "ENG"]
[SourceTitle "playchess.com"]
[Source "ChessBase"]
[SourceQuality "1"]
[TimeControl "40/5400+30:1800+30"]

{[%evp 31,131,30,41,16,41,30,52,37,46,44,46,25,65,39,57,43,86,86,77,75,79,72,107,54,50,27,25,8,7,12,9,17,51,51,108,47,53,44,42,43,43,43,63,63,63,63,63,63,63,63,70,70,70,70,74,70,70,70,70,70,73,70,70,70,70,0,0,8,70,70,70,70,70,22,30,29,31,0,17,0,46,31,46,0,0,0,0,0,0,0,0,0,29968,0,29972,29972,29972,29973,29986,29987,29995,29994]} 1. c4 {[%emt 0:00:02]} e5 {[%emt 0:00:15]} 2. Nc3 {[%emt 0:00:12]} Nf6 {[%emt 0:00:34]} 3. g3 {[%emt 0:00:36]} d5 {[%emt 0:00:30]} 4. cxd5 {[%emt 0:00:06]} Nxd5 {[%emt 0:00:06]} 5. Bg2 {[%emt 0:00:12]} Nf6 {[%emt 0:00:17]} 6. Nf3 {[%emt 0:01:35]} Nc6 {[%emt 0:00:17]} 7. O-O {[%emt 0:02:38]} h6 {[%emt 0:00:43]} 8. d3 {[%emt 0:03:08]} Bd6 {[%emt 0:00:30]} 9. Nd2 {[%emt 0:04:11]} Ne7 {[%emt 0:07:33]} 10. Nc4 {[%emt 0:01:47]} O-O {[%emt 0:01:41]} 11. Nxd6 {[%emt 0:00:49]} Qxd6 {[%emt 0:00:07]} 12. Qc2 {[%emt 0:05:50]} c6 {[%emt 0:00:27]} 13. Bd2 {[%emt 0:01:17]} Ned5 {[%emt 0:07:17]} 14. a3 {[%emt 0:00:46]} Nxc3 {[%emt 0:02:10]} 15. bxc3 {[%emt 0:00:43]} Bg4 {[%emt 0:04:17]} 16. Rfe1 {[%emt 0:00:28]} Rfd8 {[%emt 0:10:39]} 17. f3 {[%emt 0:14:25]} Bf5 {[%emt 0:01:43]} 18. Be3 {[%emt 0:00:07]} b6 {[%emt 0:04:24]} 19. Bf2 {[%emt 0:01:55]} c5 {[%emt 0:06:50]} 20. e4 {[%emt 0:00:31]} Bg6 {[%emt 0:08:27]} (20... Qxd3 $2 21. Qxd3 Rxd3 22. exf5 $18) 21. Red1 {[%emt 0:00:18]} Qc7 {[%emt 0:01:30]} 22. a4 {[%emt 0:07:04]} Ne8 {[%emt 0:01:42]} 23. a5 {[%emt 0:01:14]} Nd6 {[%emt 0:14:10]} 24. Qa2 {[%emt 0:00:54]} Rab8 {[%emt 0:01:43]} 25. d4 {[%emt 0:06:38]} cxd4 {[%emt 0:13:03]} 26. cxd4 {[%emt 0:00:29]} exd4 {[%emt 0:00:06]} 27. axb6 {[%emt 0:04:03]} (27. Bxd4 Nc4 $11) (27. Rac1 $16 Qe7 28. Rxd4 (28. Bxd4 Nb5 $11)) 27... axb6 $14 {[%emt 0:00:07]} 28. Rxd4 {[%emt 0:00:14]} b5 {[%emt 0:01:30]} 29. Qb3 {[%emt 0:04:04]} Nc4 {[%emt 0:00:45]} 30. Rxd8+ {[%emt 0:03:10]} Qxd8 {[%emt 0:00:32]} 31. Rd1 {[%emt 0:01:42]} Qc8 {[%emt 0:01:22]} 32. Rd5 {[%emt 0:00:43]} Qb7 {[%emt 0:03:45] [#]} ({Don't blunder} 32... b4 $2 33. Rc5 Qe6 34. Rxc4 $18 (34. Qxc4 Qxc4 35. Rxc4 b3 $18)) (32... Kh7 $14) 33. Bf1 {[%emt 0:00:47]} ({Better is} 33. f4 $1 $16) 33... Kh8 {[%emt 0:01:18]} 34. Bxc4 {[%emt 0:01:02]} bxc4 {[%emt 0:00:05]} 35. Qxc4 {[%emt 0:00:53]} f5 {[%emt 0:01:01]} 36. Rd6 $1 {[%emt 0:00:57]} (36. exf5 $2 {loses.} Bf7 37. Qf4 Bxd5 $19) 36... fxe4 {[%emt 0:03:00]} 37. Rxg6 {[%emt 0:08:22]} Qb1+ {[%emt 0:00:23]} 38. Qf1 {[%emt 0:00:05]} e3 $1 {[%emt 0:00:10]} 39. Re6 {[%emt 0:05:47]} exf2+ {[%emt 0:02:05]} 40. Kg2 {[%emt 0:01:47]} (40. Kxf2 {simplifies} Qxf1+ 41. Kxf1 Rb1+ 42. Kf2) 40... Qc2 {[%emt 0:01:58]} 41. Re2 {[%emt 0:31:43]} ({Of course not} 41. Qxf2 Qxf2+ 42. Kxf2 Rb2+ 43. Re2 Rb1 $11) 41... Qc3 {[%emt 0:30:35]} 42. Qxf2 {[%emt 0:00:27]} Rd8 {[%emt 0:00:00]} 43. Qa7 {[%emt 0:00:00]} (43. g4 {simplifies} Kh7 44. Re3 Rd3 45. Rxd3 Qxd3 46. h4) 43... Rd2 {[%emt 0:00:00]} 44. Qa8+ {[%emt 0:00:00]} (44. Rxd2 {simplifies} Qxd2+ 45. Qf2 Qa5 46. Qe3) 44... Kh7 {[%emt 0:00:00]} 45. Qe4+ {[%emt 0:00:00]} Kh8 {[%emt 0:00:00]} 46. Rxd2 {[%emt 0:00:00]} Qxd2+ {[%emt 0:00:00]} 47. Kh3 {[%emt 0:20:19]} Qd7+ {[%emt 0:00:00]} 48. Kh4 {[%emt 0:00:00]} ({White should play} 48. Qg4 $1 $14 Qf7 49. Qe4) 48... Qd8+ $1 $11 {[%emt 0:00:00]} 49. Kg4 {[%emt 0:00:00]} Qg5+ {[%emt 0:00:00]} (49... Qc8+ $1 $11 50. Kh5 Qd8) 50. Kh3 $14 {[%emt 0:00:00]} Qd8 {[%emt 0:00:00]} 51. Qe6 {[%emt 0:00:00]} Qd2 {[%emt 0:00:00]} 52. f4 {[%emt 0:00:00]} ({White should try} 52. Qf7 $14) 52... Qd3 {[%emt 0:00:00]} 53. Kh4 {[%emt 0:00:00]} Qc2 {[%emt 0:00:00]} 54. h3 {[%emt 0:00:00]} Kh7 {[%emt 0:00:00]} 55. f5 {[%emt 0:00:00]} Qc3 {[%emt 0:00:00]} (55... Qd2 $11 56. Qg6+ Kh8) 56. Qg6+ {[%emt 0:00:00]} Kh8 {[%emt 0:00:00]} 57. Kh5 {[%emt 0:00:00]} (57. Qe8+ $1 $14 Kh7 58. Qe4) 57... Qf3+ {[%emt 0:00:00]} 58. Qg4 {[%emt 0:00:00]} Qe3 {[%emt 0:00:00]} 59. h4 {[%emt 0:00:00]} Qe8+ {[%emt 0:02:59]} 60. Qg6 {[%emt 0:00:00]} Qe5 {[%emt 0:01:11]} 61. g4 {[%emt 0:00:00]} Qd5 $2 {[%emt 0:07:13][%mdl 8192] [#]} (61... Qd4 $11) 62. Qe6 $1 {[%emt 0:00:00]} Qd4 $2 {[%emt 0:00:00][%mdl 8192]} (62... Qf3 $11) 63. g5 {[%emt 0:00:00]} hxg5 {[%emt 0:00:00]} 64. hxg5 {[%emt 0:00:00]} Qd8 {[%emt 0:00:40]} 65. Kg6 {[%emt 0:00:00]} Qb8 {[%emt 0:00:41]} 66. Qc6 {[%emt 0:00:00]} 1-0

[Event "XTX Markets London Masters 2024"]
[Site "London"]
[Date "2024.11.30"]
[Round "2.10"]
[White "Gonzalez Garcia, Jose"]
[Black "Derakhshani, Borna"]
[Result "1/2-1/2"]
[ECO "D30"]
[WhiteElo "2465"]
[BlackElo "2355"]
[Annotator "TA"]
[PlyCount "56"]
[EventDate "2024.11.28"]
[EventType "swiss"]
[EventCountry "ENG"]
[SourceTitle "playchess.com"]
[Source "ChessBase"]
[SourceQuality "1"]
[TimeControl "40/5400+30:1800+30"]

{[%evp 9,56,22,23,27,35,35,30,20,27,20,28,29,27,21,22,22,15,28,19,8,26,18,10,13,23,0,8,-17,0,-8,47,7,28,16,97,48,62,26,17,21,21,15,22,21,31,0,10,0,35]} 1. d4 {[%emt 0:00:15]} d5 {[%emt 0:03:28]} 2. c4 {[%emt 0:00:07]} e6 {[%emt 0:00:17]} 3. Nf3 {[%emt 0:00:32]} c6 {[%emt 0:00:07]} 4. e3 {[%emt 0:00:44]} Nf6 {[%emt 0:00:06]} 5. b3 {[%emt 0:00:56]} Bb4+ {[%emt 0:02:29]} 6. Nbd2 {[%emt 0:00:53]} O-O {[%emt 0:09:29]} 7. Bb2 {[%emt 0:00:52]} Nbd7 {[%emt 0:03:13]} 8. Bd3 {[%emt 0:01:05]} b6 {[%emt 0:03:33]} 9. O-O {[%emt 0:05:07]} Bb7 {[%emt 0:00:12]} 10. a3 {[%emt 0:17:19]} Bd6 {[%emt 0:11:10]} 11. b4 {[%emt 0:07:34]} c5 {[%emt 0:01:24]} 12. cxd5 {[%emt 0:01:22]} exd5 {[%emt 0:01:43]} 13. dxc5 {[%emt 0:08:22]} bxc5 {[%emt 0:00:04]} 14. bxc5 {[%emt 0:13:13]} Nxc5 {[%emt 0:00:06]} 15. Nb3 {[%emt 0:01:18]} Nxd3 {[%emt 0:13:20]} 16. Qxd3 {[%emt 0:01:03]} Ne4 {[%emt 0:03:38]} 17. Qd4 {[%emt 0:03:37][%csl Gb2][%cal Rd4g7]} f6 {[%emt 0:00:11]} 18. Rfd1 {[%emt 0:05:04]} Re8 {[%emt 0:06:33]} 19. Qa4 {[%emt 0:01:29]} Be5 {[%emt 0:08:53]} (19... Rb8 $11) 20. Bd4 {[%emt 0:05:40]} a5 {[%emt 0:07:53]} 21. Rac1 {[%emt 0:03:08]} Kh8 {[%emt 0:07:37] [#]} (21... Bd6 $11 {keeps the balance.}) 22. Nc5 {[%emt 0:03:51]} ({White should try} 22. Bxe5 $1 $16 fxe5 23. Nc5 Nxc5 24. Rxc5) 22... Nxc5 $14 {[%emt 0:00:03]} 23. Rxc5 {[%emt 0:00:32]} Bd6 {[%emt 0:00:49]} 24. Rc3 {[%emt 0:00:13]} Qe7 {[%emt 0:01:37]} 25. Rdc1 {[%emt 0:04:01]} Qf7 {[%emt 0:03:16]} 26. Bc5 {[%emt 0:04:51]} Be5 {[%emt 0:00:25] A strong pair of Bishops.} 27. Bd4 {[%emt 0:00:18] and Bxe5 would now be decisive} Bd6 {[%emt 0:00:01]} 28. Bc5 {[%emt 0:00:31]} Be5 {[%emt 0:00:19]} 1/2-1/2

[Event "XTX Markets London Masters 2024"]
[Site "London"]
[Date "2024.11.30"]
[Round "2.11"]
[White "Li, Wenxiang"]
[Black "Wadsworth, Matthew J"]
[Result "0-1"]
[ECO "E11"]
[WhiteElo "2145"]
[BlackElo "2461"]
[Annotator "TA"]
[PlyCount "112"]
[EventDate "2024.11.28"]
[EventType "swiss"]
[EventCountry "ENG"]
[SourceTitle "playchess.com"]
[Source "ChessBase"]
[SourceQuality "1"]
[TimeControl "40/5400+30:1800+30"]

{[%evp 10,112,17,8,47,18,11,4,17,12,16,6,25,17,18,0,0,0,0,0,0,0,21,38,58,46,68,64,31,13,33,-39,-63,-63,-70,-73,-28,-43,0,0,17,-8,0,0,0,-18,-2,-6,0,0,0,0,22,18,33,35,24,29,60,27,54,8,0,6,18,0,14,0,0,-47,-44,-46,-47,-236,-227,-227,-229,-245,-248,-241,-250,-1593,-316,-302,-302,-318,-329,-323,-320,-362,-362,-354,-354,-580,-677,-697,-681,-697,-637,-697,-662,-785,-772,-745,-739]} 1. d4 {[%emt 0:00:50]} Nf6 {[%emt 0:00:07]} 2. c4 {[%emt 0:00:07]} e6 {[%emt 0:00:06]} 3. Nf3 {[%emt 0:00:08]} Bb4+ {[%emt 0:00:06]} 4. Nbd2 {[%emt 0:00:38]} O-O {[%emt 0:00:16]} 5. a3 {[%emt 0:00:06]} Be7 {[%emt 0:00:10]} 6. e4 {[%emt 0:00:38]} d6 {[%emt 0:00:09][%cal Oe6e5]} 7. Bd3 {[%emt 0:04:30]} e5 {[%emt 0:00:59]} 8. O-O {[%emt 0:02:29]} exd4 {[%emt 0:00:13]} 9. Nxd4 {[%emt 0:00:03]} Re8 {[%emt 0:00:13]} 10. b4 {[%emt 0:04:50]} a5 {[%emt 0:04:56]} 11. Rb1 {[%emt 0:01:13]} Nfd7 {[%emt 0:06:07]} 12. Bb2 {[%emt 0:07:36]} Bf6 {[%emt 0:05:02]} 13. Qb3 {[%emt 0:06:58]} axb4 {[%emt 0:15:16]} 14. axb4 {[%emt 0:00:07]} c5 {[%emt 0:05:20]} 15. Nb5 {[%emt 0:08:41]} Bxb2 {[%emt 0:04:06]} 16. Qxb2 {[%emt 0:04:47]} Ne5 {[%emt 0:01:39]} 17. Be2 {[%emt 0:00:26]} Nbc6 {[%emt 0:00:29]} 18. bxc5 {[%emt 0:03:50]} dxc5 {[%emt 0:00:40]} 19. Rbd1 {[%emt 0:04:23]} Qb6 {[%emt 0:07:41]} 20. Qc3 {[%emt 0:08:23]} (20. Qb3 $14) 20... Nd4 {[%emt 0:03:59]} (20... Ra2 {feels hotter.} 21. Rfe1 Nd4 22. Nxd4 cxd4 23. Qb3 Qa7) 21. Nxd4 {[%emt 0:01:44]} cxd4 {[%emt 0:00:06]} 22. Qb3 {[%emt 0:00:11]} Qc5 {[%emt 0:00:25][%cal Od4d3] Black has more active pieces.} 23. Qc2 {[%emt 0:01:40]} Nc6 {[%emt 0:10:59]} 24. Nb3 {[%emt 0:03:10]} Qb6 {[%emt 0:01:37]} 25. c5 {[%emt 0:03:25]} Qb4 {[%emt 0:00:11]} 26. Bc4 {[%emt 0:04:22]} Be6 {[%emt 0:03:36]} 27. Bd5 {[%emt 0:01:10]} Ra3 {[%emt 0:01:14]} 28. Rb1 {[%emt 0:07:21]} Qa4 {[%emt 0:04:50]} 29. Qd1 {[%emt 0:00:59]} d3 {[%emt 0:05:01]} 30. Bxe6 {[%emt 0:02:10]} fxe6 {[%emt 0:01:08]} 31. Qxd3 {[%emt 0:05:38]} Rd8 {[%emt 0:00:11]} 32. Qh3 {[%emt 0:02:26]} Nd4 {[%emt 0:07:14][%cal Ra3b3,Bc6d4,Bd4e2,Be2f4,Bf4d3][%mdl 32]} 33. Qh4 {[%emt 0:00:47]} Ne2+ {[%emt 0:00:01]} 34. Kh1 {[%emt 0:00:01]} Rf8 {[%emt 0:01:23]} 35. Qg4 {[%emt 0:02:40]} (35. Qe7 $1 $14 Nf4 (35... Qxe4 $2 36. Nd2 $18) 36. Nd2 (36. Qxb7 Ra2 $11)) 35... Nf4 $11 {[%emt 0:02:33]} 36. Nd2 {[%emt 0:00:24]} Rf7 {[%emt 0:01:09]} 37. Nf3 {[%emt 0:04:46]} Qxe4 {[%emt 0:01:35]} 38. Rfe1 {[%emt 0:00:43]} Qd5 {[%emt 0:01:37][%cal Oh7h5]} 39. Rbd1 {[%emt 0:01:06]} (39. c6 $11 Nd3 40. Qxe6 Qxc6 41. Qxc6 bxc6 42. Re8+ Rf8 43. Re2) 39... Nd3 $15 {[%emt 0:02:59]} (39... Qxc5 40. Ng5 Rf8 (40... Nd3 $2 41. Rxd3 Rxd3 42. Nxf7 $18) 41. Nxe6 Nxe6 42. Qxe6+ Kh8 43. f3 $11) 40. Kg1 {[%emt 0:00:53]} Qxc5 {[%emt 0:01:56]} 41. Re3 $2 {[%emt 0:31:21]} (41. Rf1 $15) 41... Qc2 $1 $19 {[%emt 0:04:24][%csl LRd1,LRf2]} 42. Rf1 {[%emt 0:00:00][%cal Of3e1] [#] Ne1! is the strong threat.} Ra1 $1 {[%emt 0:01:29][%mdl 512]} 43. Rxa1 {[%emt 0:00:00]} (43. Qg3 Rxf1+) 43... Qxf2+ {[%emt 0:00:08]} 44. Kh1 {[%emt 0:00:00] Ra8+ would kill now.} Qxe3 $40 {[%emt 0:00:09][%mdl 128] Black wants a kill.} 45. Qh4 $2 {[%emt 0:00:00]} (45. Ra8+ Rf8 46. Rxf8+ Kxf8 47. Qh4 Qc1+ 48. Ng1) 45... Rf8 $2 {[%emt 0:04:21]} (45... Rxf3 46. Ra8+ Kf7 (46... Rf8 $2 47. Rxf8+ Kxf8 48. h3 $19) 47. Qh5+ Ke7 48. Qe8+ Kf6 (48... Kd6 49. Qb8+ Kc6 50. Qc8+ Kd6 51. Qb8+ Kd5 52. Qxb7+ Ke5 53. Qxg7+ Rf6 54. Qc7+ Ke4 55. Ra4+ Kf5 56. Qxh7+ Rg6 57. Qf7+ Kg5 58. Qe7+ Rf6 59. Qg7+ Rg6 60. Qe7+ Rf6 61. Qg7+ Rg6 62. Qe7+ $11) 49. Qf8+ Kg6 50. gxf3 Nf4 51. Qxf4 Qxf4) 46. h3 {[%emt 0:00:00]} b5 {[%emt 0:01:25]} 47. Qd4 {[%emt 0:00:00] [#]} Qxd4 $1 {[%emt 0:03:08]} (47... Rxf3 $2 48. Ra8+ Kf7 49. Ra7+ Kg6 50. Qxg7+ (50. Rxg7+ $2 Kh6 $19) 50... Kf5 51. Rf7+ (51. gxf3 Qxf3+ 52. Qg2 Qe3 $14) (51. Qxh7+ Ke5 $11) 51... Ke4 52. Rxf3 (52. gxf3+ Kd5 $14) 52... Qc1+ 53. Kh2 $18) 48. Nxd4 {[%emt 0:00:00][%mdl 4096] Endgame KRN-KRN. Black is two pawns up.} b4 {[%emt 0:00:10]} 49. Nxe6 {[%emt 0:00:00]} Rb8 {[%emt 0:00:10] And now ...b3 would win.} 50. Nd4 {[%emt 0:00:00]} b3 {[%emt 0:00:09]} 51. Kh2 $2 {[%emt 0:00:00]} (51. Nxb3 {is the only way for White.} Rxb3 52. Ra8+ Kf7 53. Ra7+ Kg6 54. Ra6+ Kh5 55. Ra7) 51... b2 {[%emt 0:00:48]} 52. Rb1 {[%emt 0:00:00]} Rc8 {[%emt 0:00:50]} 53. Nb3 {[%emt 0:00:00]} Rc3 {[%emt 0:00:59]} 54. Nd2 {[%emt 0:00:00]} Rc2 {[%emt 0:00:07]} 55. Nb3 {[%emt 0:00:00]} Nf4 {[%emt 0:00:37]} 56. Kg3 {[%emt 0:00:00]} Ne2+ {[%emt 0:00:09]} ({And not} 56... Nxg2 57. Nd4 Rd2 58. Nf3 $11) 0-1

[Event "XTX Markets London Masters 2024"]
[Site "London"]
[Date "2024.11.30"]
[Round "2.12"]
[White "Korneev, Oleg"]
[Black "Dong, Bao Nghia"]
[Result "1-0"]
[ECO "B90"]
[WhiteElo "2459"]
[BlackElo "2247"]
[Annotator "TA"]
[PlyCount "89"]
[EventDate "2024.11.28"]
[EventType "swiss"]
[EventCountry "ENG"]
[SourceTitle "playchess.com"]
[Source "ChessBase"]
[SourceQuality "1"]
[TimeControl "40/5400+30:1800+30"]

{[%evp 20,89,18,0,13,7,6,7,0,4,21,24,45,41,64,97,66,60,62,61,65,54,195,200,198,102,154,150,135,161,139,-36,-35,-35,-35,-35,-50,-45,-56,-48,-36,-53,-49,-58,0,0,0,0,0,0,376,357,578,580,623,605,6075,5173,6203,6079,12823,6791,29956,659,565,0,29965,29967,29969,29970,29970,29971]} 1. e4 {[%emt 0:05:55]} c5 {[%emt 0:12:04]} 2. Nf3 {[%emt 0:02:09]} d6 {[%emt 0:00:37]} 3. d4 {[%emt 0:00:02]} cxd4 {[%emt 0:00:07]} 4. Nxd4 {[%emt 0:00:02]} Nf6 {[%emt 0:00:11]} 5. Nc3 {[%emt 0:00:04]} a6 {[%emt 0:00:07]} 6. Be3 {[%emt 0:00:02]} e5 {[%emt 0:00:46]} 7. Nf3 {[%emt 0:00:03]} Be7 {[%emt 0:00:08]} 8. Bc4 {[%emt 0:00:02][%cal Bf1c4,Bc4b3,Bb3d5,Bd5e4][%mdl 32]} O-O {[%emt 0:00:12]} 9. O-O {[%emt 0:00:02]} Be6 {[%emt 0:00:25]} 10. Bb3 {[%emt 0:00:02]} Nc6 {[%emt 0:00:34]} 11. Bg5 {[%emt 0:03:14]} Nd7 {[%emt 0:03:15][%cal Bf6d7,Bd7c5,Bc5e4][%mdl 32]} 12. Bxe7 {[%emt 0:00:05]} Qxe7 {[%emt 0:00:05]} 13. Nd5 {[%emt 0:00:04]} Bxd5 {[%emt 0:00:29]} 14. Bxd5 {[%emt 0:01:10]} Kh8 {[%emt 0:00:33]} 15. c3 {[%emt 0:03:47]} Nc5 {[%emt 0:04:11]} 16. Nd2 {[%emt 0:08:35]} f5 {[%emt 0:03:33]} 17. exf5 {[%emt 0:01:19]} Rxf5 {[%emt 0:00:06]} 18. Ne4 {[%emt 0:00:01]} Nxe4 $1 {[%emt 0:01:03]} 19. Bxe4 {[%emt 0:00:08]} Rf4 {[%emt 0:00:06]} 20. Qd3 {[%emt 0:03:39][%cal Oa1d1]} d5 {[%emt 0:17:54]} 21. Bxd5 $18 {[%emt 0:01:46]} (21. Qxd5 Rd8 22. Qc4 Nd4 $16) 21... Rd8 {[%emt 0:01:28] [#]} 22. g3 {[%emt 0:10:37]} ({White should play} 22. Rad1 $1 $18) 22... Nb4 $16 {[%emt 0:11:31][%cal Bc6b4,Bb4d5,Bd5f4][%mdl 32]} 23. Qe2 {[%emt 0:18:51]} (23. cxb4 Rd4 24. Qc2 R4xd5 $16) 23... Nxd5 {[%emt 0:00:26]} 24. gxf4 {[%emt 0:00:02]} Nxf4 {[%emt 0:00:10] [#]} 25. Qg4 $2 {[%emt 0:00:01] Prevents Qg5.} (25. Qe4 $1 $16) 25... h5 $15 {[%emt 0:00:17][%mdl 1024] Black has compensation.} 26. Qf3 {[%emt 0:00:57]} Rd3 $36 {[%emt 0:00:17][%mdl 2048] Black is more active.} 27. Qe4 {[%emt 0:02:34]} Qg5+ {[%emt 0:04:34]} 28. Kh1 {[%emt 0:00:02][%cal Of1g1]} Rh3 {[%emt 0:00:09] ( -> ...Qh4)} 29. Rae1 $1 {[%emt 0:13:00][%cal Oe1e3]} (29. Qxb7 Rxh2+ 30. Kxh2 Qh4+ 31. Kg1 Qg4+ 32. Kh2 Qh3+ 33. Kg1 Ne2#) 29... Qh4 {[%emt 0:00:13]} 30. Re3 {[%emt 0:00:15] Black must now prevent Rxh3.} Rxh2+ {[%emt 0:00:10]} 31. Kg1 {[%emt 0:00:01]} Rh3 {[%emt 0:00:36]} ({Black should play} 31... b5 $15) 32. Rfe1 $11 {[%emt 0:00:08]} Qg4+ {[%emt 0:26:12]} 33. Kf1 {[%emt 0:00:04]} Rh2 {[%emt 0:00:23] and ...Qh4 would now be decisive} 34. Rg3 {[%emt 0:04:47] Chess con chili.} Qd7 $2 {[%emt 0:09:24][%mdl 8192]} (34... Nh3 $1 $11 {and Black is okay.} 35. Rxh3 Qxh3+ 36. Kg1 Qh4 37. Qxh4 Rxh4) 35. Kg1 $1 $18 {[%emt 0:02:30]} (35. Qxe5 $2 {is a self mate.} Rh1+ 36. Rg1 Qh3#) 35... h4 $2 {[%emt 0:05:00]} (35... Rh4 36. Qxe5 Kg8 37. Qe8+ Qxe8 38. Rxe8+ Kf7) 36. Rxg7 {[%emt 0:11:44]} ({Inferior is} 36. Kxh2 hxg3+ 37. fxg3 Qh3+ 38. Kg1 Qxg3+ 39. Kf1 Qh3+ 40. Kg1 Qg3+ 41. Kf1 Qh3+ 42. Kg1 Qg3+ $11) 36... Qxg7+ {[%emt 0:00:38]} 37. Kxh2 {[%emt 0:00:02][%mdl 4096] Endgame KQR-KQN} Ng6 {[%emt 0:00:22]} 38. Rg1 {[%emt 0:00:34]} Kh7 {[%emt 0:00:02]} 39. Qf5 {[%emt 0:00:31]} Qh6 {[%emt 0:00:37]} 40. Rg5 {[%emt 0:01:08]} Qg7 {[%emt 0:00:35] Inhibits Qf7.} 41. Rh5+ {[%emt 0:30:55]} (41. a4 $142 e4 42. Qxe4 Qf6 43. Rh5+ (43. Qxb7+ Kh6 $18) 43... Kg8 44. Qd5+ (44. Qxb7 Qxf2+ 45. Qg2 Qxg2+ 46. Kxg2 Nf4+ 47. Kh2 Nxh5 $19) 44... Kg7 45. Qxb7+ Ne7 46. Kg1) 41... Kg8 {[%emt 0:30:05]} 42. Rg5 {[%emt 0:02:58]} (42. b4 $18) 42... Kh7 {[%emt 0:00:10]} 43. a4 {[%emt 0:00:43]} e4 {[%emt 0:00:00]} 44. Qxe4 {[%emt 0:00:00]} Kh6 {[%emt 0:00:00] [#]} 45. Rxg6+ $1 {[%emt 0:00:00]} 1-0

[Event "XTX Markets London Masters 2024"]
[Site "London"]
[Date "2024.11.30"]
[Round "2.14"]
[White "Balaji, Aaravamudhan"]
[Black "Goh, Jinghan Cameron"]
[Result "0-1"]
[ECO "E40"]
[WhiteElo "2377"]
[BlackElo "2017"]
[Annotator "TA"]
[PlyCount "106"]
[EventDate "2024.11.28"]
[EventType "swiss"]
[EventCountry "ENG"]
[SourceTitle "playchess.com"]
[Source "ChessBase"]
[SourceQuality "1"]
[TimeControl "40/5400+30:1800+30"]

{[%evp 13,106,-20,0,0,0,0,0,0,0,0,26,-9,-13,-3,-18,-16,48,22,34,29,31,39,39,0,0,0,0,0,0,0,0,-110,-91,-100,-114,-160,0,-406,-400,-410,-398,-439,-442,-541,-536,-478,-333,-349,-333,-344,-337,-335,-300,-342,0,-346,-318,-514,-514,-593,-559,-591,-588,-535,-420,-616,-615,-733,-318,-584,-581,-570,-592,-734,-655,-948,-970,-912,-957,-903,-902,-865,-797,-1014,-970,-1168,-1108,-1148,-1130,-1536,-1832,-29982,-29983,-29998,-29999]} 1. d4 {[%emt 0:04:18]} Nf6 {[%emt 0:00:02]} 2. c4 {[%emt 0:00:05]} e6 {[%emt 0:00:02]} 3. Nc3 {[%emt 0:00:04]} Bb4 {[%emt 0:00:03]} 4. e3 {[%emt 0:00:05]} O-O {[%emt 0:00:06]} 5. a3 {[%emt 0:00:01]} Bxc3+ {[%emt 0:01:21]} 6. bxc3 {[%emt 0:00:01]} Nc6 {[%emt 0:02:33]} 7. Bd3 {[%emt 0:11:54]} e5 {[%emt 0:00:47]} 8. f3 {[%emt 0:00:05]} e4 {[%emt 0:09:33]} 9. fxe4 {[%emt 0:03:32]} (9. Bxe4 Nxe4 10. fxe4 Qh4+ 11. Kf1 Qxe4 $17) 9... Nxe4 {[%emt 0:00:36]} 10. Ne2 {[%emt 0:09:12]} f5 {[%emt 0:21:18]} 11. O-O {[%emt 0:02:52]} d6 {[%emt 0:03:49]} 12. Qc2 {[%emt 0:06:11][%cal Oc1d2]} Na5 {[%emt 0:05:01]} 13. Ng3 {[%emt 0:05:01]} Nxg3 {[%emt 0:06:50]} 14. hxg3 {[%emt 0:00:06][%cal Oe3e4]} g6 {[%emt 0:03:44]} (14... Be6 $11) 15. Bd2 {[%emt 0:03:54]} Be6 {[%emt 0:09:27]} 16. d5 {[%emt 0:10:04]} Bd7 {[%emt 0:01:05] [#]} 17. c5 $1 {[%emt 0:04:54]} Qe8 $1 {[%emt 0:03:35]} 18. a4 {[%emt 0:04:57]} dxc5 {[%emt 0:00:14]} 19. c4 {[%emt 0:03:39]} b6 {[%emt 0:00:21]} 20. e4 {[%emt 0:13:24]} fxe4 {[%emt 0:02:10]} 21. Rxf8+ {[%emt 0:02:59]} Qxf8 {[%emt 0:01:37]} 22. Rf1 {[%emt 0:01:23]} (22. Bxe4 $11 Qf6 23. Bc3) 22... Qg7 $17 {[%emt 0:09:29]} 23. Bxe4 {[%emt 0:00:47]} Qd4+ {[%emt 0:06:01]} 24. Kh2 {[%emt 0:12:13][%cal Od5d6] [#] Strongly threatening d6!.} Bxa4 $2 {[%emt 0:10:20]} 25. Qc3 $2 {[%emt 0:00:35][%mdl 8192]} (25. Qxa4 $11 Qxd2 26. Rf4) 25... Nxc4 $19 {[%emt 0:01:15]} (25... Qxe4 26. Qf6 Qg4 27. Bc3 (27. Qf7+ Kh8 28. Bc3+ Qd4 29. Bxd4+ cxd4 30. Qe7 Kg8 31. Rf7 Nxc4 32. Rxh7 Rf8 33. Qg7#)) 26. Qxd4 {[%emt 0:00:42]} cxd4 {[%emt 0:00:07]} 27. Bh6 {[%emt 0:00:29]} Nd6 {[%emt 0:00:32]} 28. Bb1 {[%emt 0:00:01]} Bb3 {[%emt 0:01:16]} 29. Rc1 {[%emt 0:00:02]} Bxd5 {[%emt 0:01:05]} 30. Rxc7 {[%emt 0:00:02]} Nf7 {[%emt 0:00:16]} 31. Bf4 {[%emt 0:00:14]} a5 {[%emt 0:00:20]} 32. Rd7 {[%emt 0:00:22]} Rd8 {[%emt 0:01:01]} 33. Ra7 {[%emt 0:01:52]} Ra8 {[%emt 0:00:13]} 34. Rd7 {[%emt 0:00:05]} Bc4 {[%emt 0:00:41]} 35. Be4 $2 {[%emt 0:01:10]} (35. Rxd4 b5 36. Bc1) 35... Rd8 {[%emt 0:00:28]} 36. Rc7 {[%emt 0:00:33]} b5 {[%emt 0:00:22]} 37. Ra7 {[%emt 0:00:40]} d3 {[%emt 0:00:23]} 38. Bd2 {[%emt 0:00:20]} Nd6 {[%emt 0:00:47]} 39. Bc6 {[%emt 0:00:39]} (39. Bxd3 $142 Bxd3 40. Bxa5) 39... b4 {[%emt 0:00:38]} 40. Bg5 {[%emt 0:00:31]} Nc8 {[%emt 0:00:26]} (40... b3 $142 41. Bxd8 b2) 41. Rc7 $2 {[%emt 0:04:03]} (41. Ra8 {keeps fighting.} d2 42. Bf3) 41... Rf8 {[%emt 0:06:51]} 42. Bh6 {[%emt 0:02:19] [#]} Be6 $1 {[%emt 0:01:45]} 43. Bb5 {[%emt 0:23:50]} (43. Ba4 Rd8) 43... Rf5 {[%emt 0:05:58]} 44. Bc4 {[%emt 0:00:52]} Rh5+ {[%emt 0:01:34]} 45. Kg1 {[%emt 0:00:09]} Bxc4 {[%emt 0:00:05]} 46. Rxc8+ {[%emt 0:01:31][%mdl 4096] Endgame KRB-KRB. Black is 3 pawns up.} Kf7 {[%emt 0:00:02]} 47. Bd2 {[%emt 0:00:45]} Bb3 {[%emt 0:00:48]} 48. Kf2 {[%emt 0:00:17]} Re5 {[%emt 0:00:21]} 49. Rc7+ {[%emt 0:00:25]} Ke6 {[%emt 0:01:41]} 50. Be3 {[%emt 0:00:10]} Bc2 {[%emt 0:00:26] Threatens to win with ...b3.} 51. Rb7 {[%emt 0:01:10]} b3 {[%emt 0:00:11]} 52. Kf3 {[%emt 0:00:28]} Rf5+ {[%emt 0:01:04]} 53. Kg4 {[%emt 0:00:05]} Bd1+ {[%emt 0:00:08]} 0-1